[Event "NJSK 2018 Meisjes AB"]
[Site "Assen, Netherlands"]
[Date "2018.05.04"]
[Round "6.6"]
[White "Warnaar, Alisha"]
[Black "Heskes, Ebba"]
[Result "1-0"]
[TimeControl "40/90m+30m+30sec/move"]
[WhiteElo "1647"]
[BlackElo "1266"]

1. e4 {[%clk 01:30:59]} e5 {[%clk 01:30:54]} {[%emt 00:00:06]} 2. Nf3 {[%clk
01:31:12]} {[%emt 00:00:17]} Nc6 {[%clk 01:31:15]} {[%emt 00:00:10]} 3. c3
{[%clk 01:31:31]} {[%emt 00:00:11]} Nf6 {[%clk 01:30:40]} {[%emt 00:01:05]} 4.
d4 {[%clk 01:29:13]} {[%emt 00:02:48]} d5 {[%clk 01:25:14]} {[%emt 00:05:56]} 5.
exd5 {[%clk 01:15:07]} {[%emt 00:14:36]} Qxd5 {[%clk 01:22:00]} {[%emt
00:03:44]} 6. dxe5 {[%clk 00:54:33]} {[%emt 00:21:04]} Qxd1+ {[%clk 01:20:40]}
{[%emt 00:01:49]} 7. Kxd1 {[%clk 00:54:59]} {[%emt 00:00:05]} Ne4 {[%clk
01:20:37]} {[%emt 00:00:32]} 8. Be3 {[%clk 00:54:47]} {[%emt 00:00:42]} Bg4
{[%clk 01:14:24]} {[%emt 00:06:43]} 9. Be2 {[%clk 00:53:56]} {[%emt 00:01:21]}
Be7 {[%clk 01:10:51]} {[%emt 00:04:02]} 10. h3 {[%clk 00:51:34]} {[%emt
00:02:53]} Bh5 {[%clk 01:09:55]} {[%emt 00:01:26]} 11. Ke1 {[%clk 00:45:05]}
{[%emt 00:06:58]} O-O {[%clk 01:05:16]} {[%emt 00:05:08]} 12. Nd4 {[%clk
00:41:55]} {[%emt 00:03:41]} Nxd4 {[%clk 00:56:19]} {[%emt 00:09:26]} 13. Bxd4
{[%clk 00:40:47]} {[%emt 00:01:39]} Bg6 {[%clk 00:55:23]} {[%emt 00:01:26]} 14.
Rg1 {[%clk 00:30:26]} {[%emt 00:10:51]} Rfe8 {[%clk 00:47:50]} {[%emt
00:08:03]} 15. f3 {[%clk 00:29:30]} {[%emt 00:01:26]} Bh4+ {[%clk 00:45:41]}
{[%emt 00:02:38]} 16. Kd1 {[%clk 00:27:52]} {[%emt 00:02:09]} Nf2+ {[%clk
00:43:49]} {[%emt 00:02:22]} 17. Kc1 {[%clk 00:22:23]} {[%emt 00:06:00]} Bg5+
{[%clk 00:37:15]} {[%emt 00:07:03]} 18. Nd2 {[%clk 00:22:22]} {[%emt 00:00:31]}
Rad8 {[%clk 00:37:06]} {[%emt 00:00:39]} 19. Rf1 {[%clk 00:21:45]} {[%emt
00:01:06]} c5 {[%clk 00:34:16]} {[%emt 00:03:21]} 20. Rxf2 {[%clk 00:17:49]}
{[%emt 00:04:27]} cxd4 {[%clk 00:33:59]} {[%emt 00:00:46]} 21. f4 {[%clk
00:16:29]} {[%emt 00:01:49]} dxc3 {[%clk 00:31:04]} {[%emt 00:03:26]} 22. bxc3
{[%clk 00:16:18]} {[%emt 00:00:41]} Bh4 {[%clk 00:30:01]} {[%emt 00:01:32]} 23.
Rf1 {[%clk 00:14:10]} {[%emt 00:02:38]} f6 {[%clk 00:24:40]} {[%emt 00:05:51]}
24. Bc4+ {[%clk 00:09:11]} {[%emt 00:05:30]} Bf7 {[%clk 00:24:36]} {[%emt
00:00:34]} 25. Bb5 {[%clk 00:06:50]} {[%emt 00:02:52]} Re7 {[%clk 00:19:38]}
{[%emt 00:05:28]} 26. Nf3 {[%clk 00:07:08]} {[%emt 00:00:12]} Bg3 {[%clk
00:17:54]} {[%emt 00:02:12]} 27. Nd4 {[%clk 00:06:56]} {[%emt 00:00:43]} fxe5
{[%clk 00:16:46]} {[%emt 00:01:38]} 28. fxe5 {[%clk 00:05:11]} {[%emt
00:02:16]} Bxe5 {[%clk 00:15:50]} {[%emt 00:01:25]} 29. Rd1 {[%clk 00:04:31]}
{[%emt 00:01:10]} Rc8 {[%clk 00:13:19]} {[%emt 00:03:01]} 30. Kb2 {[%clk
00:04:17]} {[%emt 00:00:44]} a6 {[%clk 00:11:27]} {[%emt 00:02:23]} 31. Bd3
{[%clk 00:03:35]} {[%emt 00:01:11]} b5 {[%clk 00:04:22]} {[%emt 00:07:36]} 32.
Rac1 {[%clk 00:03:34]} {[%emt 00:00:31]} b4 {[%clk 00:01:31]} {[%emt 00:03:21]}
33. Ne2 {[%clk 00:03:43]} {[%emt 00:00:20]} bxc3+ {[%clk 00:01:29]} {[%emt
00:00:32]} 34. Kc2 {[%clk 00:02:26]} {[%emt 00:01:47]} 1-0

[Event "NJSK 2018 Meisjes AB"]
[Site "Assen, Netherlands"]
[Date "2018.05.05"]
[Round "7.1"]
[White "Duson, Robin"]
[Black "Naber, Quirine"]
[Result "1-0"]
[TimeControl "40/90m+30m+30sec/move"]
[WhiteElo "1920"]
[BlackElo "1775"]

1. e4 {[%clk 01:30:54]} {[%emt 00:00:19]} e5 {[%clk 01:30:56]} {[%emt
00:00:32]} 2. Nf3 {[%clk 01:31:13]} {[%emt 00:00:18]} Nc6 {[%clk 01:31:22]}
{[%emt 00:00:08]} 3. Bc4 {[%clk 01:31:32]} {[%emt 00:00:17]} Bc5 {[%clk
01:31:40]} {[%emt 00:00:16]} 4. c3 {[%clk 01:31:40]} {[%emt 00:00:27]} Nf6
{[%clk 01:31:57]} {[%emt 00:00:13]} 5. d3 {[%clk 01:31:55]} {[%emt 00:00:16]}
d6 {[%clk 01:32:07]} {[%emt 00:00:29]} 6. O-O {[%clk 01:31:53]} {[%emt
00:00:34]} Bg4 {[%clk 01:31:39]} {[%emt 00:01:08]} 7. Nbd2 {[%clk 01:31:12]}
{[%emt 00:01:17]} Qe7 {[%clk 01:31:26]} {[%emt 00:00:36]} 8. b4 {[%clk
01:26:51]} {[%emt 00:03:17]} Bb6 {[%clk 01:31:48]} {[%emt 00:00:09]} 9. h3
{[%clk 01:21:29]} {[%emt 00:05:52]} Bd7 {[%clk 01:30:37]} {[%emt 00:01:41]} 10.
Re1 {[%clk 01:17:53]} {[%emt 00:04:04]} O-O {[%clk 01:27:54]} {[%emt 00:03:16]}
11. Nf1 {[%clk 01:14:56]} {[%emt 00:03:26]} Be6 {[%clk 01:26:02]} {[%emt
00:02:23]} 12. Bb3 {[%clk 01:12:37]} {[%emt 00:02:50]} h6 {[%clk 01:24:01]}
{[%emt 00:02:30]} 13. Ng3 {[%clk 01:11:14]} {[%emt 00:01:52]} a5 {[%clk
01:16:34]} {[%emt 00:07:59]} 14. b5 {[%clk 01:06:47]} {[%emt 00:04:56]} Na7
{[%clk 01:16:43]} {[%emt 00:00:22]} 15. a4 {[%clk 01:06:16]} {[%emt 00:01:01]}
c6 {[%clk 01:16:44]} {[%emt 00:00:30]} 16. bxc6 {[%clk 01:01:34]} {[%emt
00:05:12]} Nxc6 {[%clk 01:16:22]} {[%emt 00:00:52]} 17. Nh4 {[%clk 00:59:51]}
{[%emt 00:02:11]} Qc7 {[%clk 01:12:42]} {[%emt 00:04:11]} 18. Rb1 {[%clk
00:55:40]} {[%emt 00:04:40]} Ba7 {[%clk 01:11:54]} {[%emt 00:01:20]} 19. Qf3
{[%clk 00:53:22]} {[%emt 00:02:48]} Ne7 {[%clk 01:11:17]} {[%emt 00:01:06]} 20.
Bxh6 {[%clk 00:51:18]} {[%emt 00:02:33]} Qxc3 {[%clk 01:07:21]} {[%emt
00:04:28]} 21. Rec1 {[%clk 00:48:48]} {[%emt 00:02:59]} Qd4 {[%clk 01:06:15]}
{[%emt 00:01:37]} 22. Rc7 {[%clk 00:45:41]} {[%emt 00:03:39]} Bxb3 {[%clk
01:00:35]} {[%emt 00:06:09]} 23. Rxb3 {[%clk 00:44:57]} {[%emt 00:01:13]} Nc6
{[%clk 00:59:26]} {[%emt 00:01:39]} 24. Rbxb7 {[%clk 00:43:14]} {[%emt
00:02:14]} Nd8 {[%clk 00:59:30]} {[%emt 00:00:25]} 25. Be3 {[%clk 00:39:29]}
{[%emt 00:04:14]} Qa1+ {[%clk 00:58:24]} {[%emt 00:01:38]} 26. Rc1 {[%clk
00:39:15]} {[%emt 00:00:42]} Qa3 {[%clk 00:57:40]} {[%emt 00:01:14]} 27. Re7
{[%clk 00:24:17]} {[%emt 00:15:28]} Bxe3 {[%clk 00:47:48]} {[%emt 00:10:22]} 28.
Qxe3 {[%clk 00:24:32]} {[%emt 00:00:18]} Qxa4 {[%clk 00:47:56]} {[%emt
00:00:20]} 29. Ngf5 {[%clk 00:23:09]} {[%emt 00:01:51]} Ne6 {[%clk 00:47:26]}
{[%emt 00:01:23]} 30. Nh6+ {[%clk 00:19:02]} {[%emt 00:04:15]} gxh6 {[%clk
00:35:39]} {[%emt 00:12:18]} 31. Qxh6 {[%clk 00:18:52]} {[%emt 00:00:39]} Nxe4
{[%clk 00:28:15]} {[%emt 00:07:55]} 32. dxe4 {[%clk 00:12:41]} {[%emt
00:06:39]} Qxe4 {[%clk 00:28:41]} {[%emt 00:00:05]} 33. Rxe6 {[%clk 00:10:54]}
{[%emt 00:02:17]} fxe6 {[%clk 00:28:56]} {[%emt 00:00:16]} 34. Ng6 {[%clk
00:10:01]} {[%emt 00:01:23]} 1-0

[Event "NJSK 2018 Meisjes AB"]
[Site "Assen, Netherlands"]
[Date "2018.05.05"]
[Round "7.3"]
[White "Den Dunnen, Lola"]
[Black "Verhoeff, Timardi"]
[Result "1-0"]
[TimeControl "40/90m+30m+30sec/move"]
[WhiteElo "1912"]
[BlackElo "1911"]

1. d4 {[%clk 01:30:57]} {[%emt 00:00:04]} e6 {[%clk 01:30:56]} {[%emt
00:00:23]} 2. c4 {[%clk 01:31:20]} {[%emt 00:00:32]} f5 {[%clk 01:31:20]}
{[%emt 00:00:09]} 3. Nc3 {[%clk 01:29:54]} {[%emt 00:02:32]} Nf6 {[%clk
01:31:18]} {[%emt 00:00:28]} 4. Nf3 {[%clk 01:25:50]} {[%emt 00:04:22]} d5
{[%clk 01:30:30]} {[%emt 00:00:44]} 5. cxd5 {[%clk 01:21:15]} {[%emt 00:04:32]}
exd5 {[%clk 01:30:50]} {[%emt 00:00:10]} 6. Bg5 {[%clk 01:18:50]} {[%emt
00:02:55]} Be7 {[%clk 01:29:02]} {[%emt 00:02:17]} 7. Ne5 {[%clk 01:12:35]}
{[%emt 00:06:45]} c6 {[%clk 01:16:56]} {[%emt 00:12:37]} 8. e3 {[%clk
01:10:59]} {[%emt 00:02:05]} O-O {[%clk 01:16:06]} {[%emt 00:01:19]} 9. Bd3
{[%clk 01:03:22]} {[%emt 00:08:07]} Ne4 {[%clk 01:08:36]} {[%emt 00:08:02]} 10.
Bxe7 {[%clk 01:02:45]} {[%emt 00:01:06]} Qxe7 {[%clk 01:09:00]} {[%emt
00:00:42]} 11. O-O {[%clk 01:00:43]} {[%emt 00:01:59]} Nd7 {[%clk 01:06:34]}
{[%emt 00:02:53]} 12. f4 {[%clk 00:55:56]} {[%emt 00:05:16]} Rf6 {[%clk
00:35:07]} {[%emt 00:31:59]} 13. Bxe4 {[%clk 00:48:59]} {[%emt 00:07:26]} fxe4
{[%clk 00:22:35]} {[%emt 00:13:02]} 14. Qe2 {[%clk 00:45:39]} {[%emt 00:03:51]}
Nxe5 {[%clk 00:17:12]} {[%emt 00:05:54]} 15. dxe5 {[%clk 00:43:32]} {[%emt
00:02:36]} Rh6 {[%clk 00:16:42]} {[%emt 00:01:00]} 16. Qf2 {[%clk 00:40:19]}
{[%emt 00:04:02]} Bd7 {[%clk 00:15:43]} {[%emt 00:01:11]} 17. Rab1 {[%clk
00:30:13]} {[%emt 00:10:35]} Rf8 {[%clk 00:13:35]} {[%emt 00:02:38]} 18. Qd2
{[%clk 00:28:53]} {[%emt 00:01:50]} Qh4 {[%clk 00:11:17]} {[%emt 00:02:48]} 19.
g3 {[%clk 00:28:29]} {[%emt 00:00:54]} Qh5 {[%clk 00:11:26]} {[%emt 00:00:22]}
20. Rf2 {[%clk 00:21:59]} {[%emt 00:07:01]} Bg4 {[%clk 00:09:56]} {[%emt
00:01:59]} 21. Ne2 {[%clk 00:19:36]} {[%emt 00:02:52]} Qh3 {[%clk 00:08:00]}
{[%emt 00:02:26]} 22. Qe1 {[%clk 00:15:15]} {[%emt 00:04:50]} Bf3 {[%clk
00:07:49]} {[%emt 00:00:43]} 23. Qf1 {[%clk 00:14:53]} {[%emt 00:00:52]} Qg4
{[%clk 00:08:08]} {[%emt 00:00:13]} 24. Rxf3 {[%clk 00:12:20]} {[%emt
00:03:03]} Qxf3 {[%clk 00:07:57]} {[%emt 00:00:39]} 25. Qxf3 {[%clk 00:11:44]}
{[%emt 00:01:06]} exf3 {[%clk 00:08:25]} {[%emt 00:00:03]} 26. Nd4 {[%clk
00:11:50]} {[%emt 00:00:26]} f2+ {[%clk 00:08:25]} {[%emt 00:00:27]} 27. Kxf2
{[%clk 00:12:14]} {[%emt 00:00:05]} Rxh2+ {[%clk 00:08:31]} {[%emt 00:00:24]}
28. Kf3 {[%clk 00:12:35]} {[%emt 00:00:08]} c5 {[%clk 00:07:06]} {[%emt
00:02:01]} 29. Ne6 {[%clk 00:11:40]} {[%emt 00:01:20]} Rc8 {[%clk 00:07:23]}
{[%emt 00:00:17]} 30. f5 {[%clk 00:10:04]} {[%emt 00:02:02]} c4 {[%clk
00:06:09]} {[%emt 00:01:45]} 31. Nd4 {[%clk 00:08:45]} {[%emt 00:01:49]} a6
{[%clk 00:05:34]} {[%emt 00:01:06]} 32. a4 {[%clk 00:08:01]} {[%emt 00:01:13]}
g6 {[%clk 00:05:44]} {[%emt 00:00:20]} 33. g4 {[%clk 00:06:51]} {[%emt
00:01:38]} Rh3+ {[%clk 00:05:55]} {[%emt 00:00:19]} 34. Kf4 {[%clk 00:07:08]}
{[%emt 00:00:13]} Kf7 {[%clk 00:04:21]} {[%emt 00:02:06]} 35. e6+ {[%clk
00:03:34]} {[%emt 00:04:03]} Ke7 {[%clk 00:04:23]} {[%emt 00:00:27]} 36. Re1
{[%clk 00:02:34]} {[%emt 00:01:31]} Rg8 {[%clk 00:03:17]} {[%emt 00:01:37]} 37.
Ke5 {[%clk 00:02:08]} {[%emt 00:00:53]} gxf5 {[%clk 00:02:36]} {[%emt
00:01:12]} 38. gxf5 {[%clk 00:01:58]} {[%emt 00:00:40]} Rh5 {[%clk 00:02:00]}
{[%emt 00:01:05]} 39. Kxd5 {[%clk 00:01:53]} {[%emt 00:00:36]} Rd8+ {[%clk
00:01:19]} {[%emt 00:01:11]} 40. Ke5 {[%clk 00:02:00]} {[%emt 00:00:20]} Rg8
{[%clk 00:01:13]} {[%emt 00:00:39]} 41. Rc1 {[%clk 00:28:48]} {[%emt 00:03:43]}
Rc8 {[%clk 00:26:16]} {[%emt 00:05:26]} 42. Rg1 {[%clk 00:27:55]} {[%emt
00:01:17]} Rc5+ {[%clk 00:23:52]} {[%emt 00:02:59]} 43. Kf4 {[%clk 00:27:30]}
{[%emt 00:00:54]} Kf6 {[%clk 00:18:15]} {[%emt 00:06:10]} 44. e4 {[%clk
00:19:31]} {[%emt 00:08:27]} Rh4+ {[%clk 00:15:41]} {[%emt 00:03:05]} 45. Rg4
{[%clk 00:19:37]} {[%emt 00:00:23]} Rh2 {[%clk 00:04:47]} {[%emt 00:11:24]} 46.
Nf3 {[%clk 00:17:19]} {[%emt 00:02:48]} Rf2 {[%clk 00:04:18]} {[%emt 00:00:59]}
47. Rg8 {[%clk 00:14:30]} {[%emt 00:03:18]} b5 {[%clk 00:02:25]} {[%emt
00:02:24]} 48. Rf8+ {[%clk 00:14:13]} {[%emt 00:00:47]} Kg7 {[%clk 00:02:25]}
{[%emt 00:00:31]} 49. e7 {[%clk 00:13:44]} {[%emt 00:00:58]} 1-0

[Event "NJSK 2018 Meisjes AB"]
[Site "Assen, Netherlands"]
[Date "2018.05.05"]
[Round "7.5"]
[White "Heskes, Ebba"]
[Black "Waardenburg, Feline"]
[Result "0-1"]
[TimeControl "40/90m+30m+30sec/move"]
[WhiteElo "1266"]
[BlackElo "1737"]

1. e4 {[%clk 01:30:57]} {[%emt 00:00:05]} c6 {[%clk 01:30:57]} {[%emt
00:00:11]} 2. Nc3 {[%clk 01:30:36]} {[%emt 00:01:47]} d5 {[%clk 01:31:01]}
{[%emt 00:00:28]} 3. exd5 {[%clk 01:30:35]} {[%emt 00:00:40]} cxd5 {[%clk
01:31:13]} {[%emt 00:00:25]} 4. d4 {[%clk 01:30:43]} {[%emt 00:00:18]} Bf5
{[%clk 01:30:07]} {[%emt 00:01:55]} 5. Nf3 {[%clk 01:30:17]} {[%emt 00:00:53]}
e6 {[%clk 01:29:13]} {[%emt 00:01:07]} 6. Bb5+ {[%clk 01:27:53]} {[%emt
00:01:35]} Nc6 {[%clk 01:28:14]} {[%emt 00:01:28]} 7. Ne5 {[%clk 01:26:27]}
{[%emt 00:01:56]} Rc8 {[%clk 01:26:14]} {[%emt 00:02:31]} 8. O-O {[%clk
01:25:40]} {[%emt 00:01:16]} Bd6 {[%clk 01:22:51]} {[%emt 00:03:53]} 9. Nf3
{[%clk 01:21:27]} {[%emt 00:04:43]} Nge7 {[%clk 01:21:32]} {[%emt 00:01:50]} 10.
a3 {[%clk 01:19:58]} {[%emt 00:01:59]} O-O {[%clk 01:21:24]} {[%emt 00:00:36]}
11. Re1 {[%clk 01:18:56]} {[%emt 00:01:33]} a6 {[%clk 01:20:09]} {[%emt
00:01:45]} 12. Bd3 {[%clk 01:18:20]} {[%emt 00:01:06]} b5 {[%clk 01:18:56]}
{[%emt 00:01:43]} 13. Bg5 {[%clk 01:14:24]} {[%emt 00:04:26]} Qc7 {[%clk
01:15:16]} {[%emt 00:04:11]} 14. Bxe7 {[%clk 01:08:57]} {[%emt 00:05:57]} Nxe7
{[%clk 01:15:02]} {[%emt 00:00:44]} 15. Ne5 {[%clk 01:08:46]} {[%emt 00:00:40]}
Bg6 {[%clk 01:13:26]} {[%emt 00:02:07]} 16. Bxg6 {[%clk 01:01:57]} {[%emt
00:07:19]} hxg6 {[%clk 01:11:42]} {[%emt 00:02:27]} 17. Re3 {[%clk 01:00:06]}
{[%emt 00:02:08]} Nf5 {[%clk 01:11:08]} {[%emt 00:01:05]} 18. Rh3 {[%clk
00:58:15]} {[%emt 00:02:21]} Bxe5 {[%clk 01:09:14]} {[%emt 00:02:24]} 19. dxe5
{[%clk 00:55:26]} {[%emt 00:03:18]} Qxe5 {[%clk 01:09:14]} {[%emt 00:00:31]} 20.
Qd2 {[%clk 00:54:00]} {[%emt 00:01:56]} Rc4 {[%clk 01:06:33]} {[%emt 00:03:11]}
21. Qg5 {[%clk 00:52:15]} {[%emt 00:02:18]} Qf6 {[%clk 01:06:21]} {[%emt
00:00:39]} 22. Qxf6 {[%clk 00:50:13]} {[%emt 00:02:32]} gxf6 {[%clk 01:06:42]}
{[%emt 00:00:09]} 23. Rf3 {[%clk 00:50:25]} {[%emt 00:00:17]} Nd4 {[%clk
01:01:01]} {[%emt 00:06:13]} 24. Rxf6 {[%clk 00:50:04]} {[%emt 00:00:50]} Nxc2
{[%clk 01:01:00]} {[%emt 00:00:33]} 25. Rd1 {[%clk 00:49:31]} {[%emt 00:01:01]}
Rfc8 {[%clk 00:56:44]} {[%emt 00:04:47]} 26. h3 {[%clk 00:48:38]} {[%emt
00:01:23]} Kg7 {[%clk 00:54:02]} {[%emt 00:03:12]} 27. Rf3 {[%clk 00:48:37]}
{[%emt 00:00:32]} Nd4 {[%clk 00:53:20]} {[%emt 00:01:14]} 28. Rfd3 {[%clk
00:47:58]} {[%emt 00:01:07]} Nf5 {[%clk 00:52:57]} {[%emt 00:00:58]} 29. R3d2
{[%clk 00:45:28]} {[%emt 00:02:56]} R8c6 {[%clk 00:47:26]} {[%emt 00:06:01]} 30.
g3 {[%clk 00:42:36]} {[%emt 00:03:22]} d4 {[%clk 00:40:40]} {[%emt 00:07:17]}
31. Ne2 {[%clk 00:37:43]} {[%emt 00:05:22]} e5 {[%clk 00:39:54]} {[%emt
00:01:17]} 32. b3 {[%clk 00:36:59]} {[%emt 00:01:16]} Rc2 {[%clk 00:37:21]}
{[%emt 00:03:01]} 33. Rxc2 {[%clk 00:37:00]} {[%emt 00:00:54]} Rxc2 {[%clk
00:37:41]} {[%emt 00:00:09]} 34. Nc1 {[%clk 00:37:20]} {[%emt 00:00:05]} e4
{[%clk 00:34:42]} {[%emt 00:03:09]} 35. g4 {[%clk 00:34:09]} {[%emt 00:03:40]}
Nh4 {[%clk 00:32:11]} {[%emt 00:03:01]} 36. Kf1 {[%clk 00:33:08]} {[%emt
00:01:31]} Nf3 {[%clk 00:30:18]} {[%emt 00:02:25]} 37. Kg2 {[%clk 00:31:57]}
{[%emt 00:01:41]} f5 {[%clk 00:30:02]} {[%emt 00:00:44]} 38. gxf5 {[%clk
00:31:39]} {[%emt 00:00:48]} gxf5 {[%clk 00:30:29]} {[%emt 00:00:04]} 39. b4
{[%clk 00:31:27]} {[%emt 00:00:42]} Ne5 {[%clk 00:27:36]} {[%emt 00:03:23]} 40.
Kf1 {[%clk 00:29:27]} {[%emt 00:02:30]} d3 {[%clk 00:23:45]} {[%emt 00:04:21]}
41. Nb3 {[%clk 00:29:06]} {[%emt 00:00:50]} Kf6 {[%clk 00:20:59]} {[%emt
00:03:16]} 42. h4 {[%clk 00:27:43]} {[%emt 00:01:52]} f4 {[%clk 00:20:22]}
{[%emt 00:01:08]} 43. Nc5 {[%clk 00:26:54]} {[%emt 00:01:19]} Kf5 {[%clk
00:18:09]} {[%emt 00:02:43]} 44. h5 {[%clk 00:23:54]} {[%emt 00:03:30]} d2
{[%clk 00:16:10]} {[%emt 00:02:29]} 45. Nb3 {[%clk 00:23:52]} {[%emt 00:01:05]}
Rc3 {[%clk 00:07:18]} {[%emt 00:09:50]} 46. Nxd2 {[%clk 00:22:19]} {[%emt
00:02:02]} Rxa3 {[%clk 00:07:05]} {[%emt 00:00:43]} 47. Re1 {[%clk 00:19:54]}
{[%emt 00:02:54]} e3 {[%clk 00:05:51]} {[%emt 00:01:45]} 48. fxe3 {[%clk
00:20:08]} {[%emt 00:00:18]} fxe3 {[%clk 00:05:38]} {[%emt 00:00:42]} 49. Nb1
{[%clk 00:19:58]} {[%emt 00:00:40]} Rb3 {[%clk 00:05:57]} {[%emt 00:00:10]} 50.
Ke2 {[%clk 00:19:59]} {[%emt 00:00:30]} Nd3 {[%clk 00:02:11]} {[%emt 00:04:17]}
51. Rh1 {[%clk 00:17:15]} {[%emt 00:03:13]} Nf4+ {[%clk 00:27:30]} {[%emt
00:05:12]} 52. Kf3 {[%clk 00:47:12]} {[%emt 00:00:31]} Kg5 {[%clk 00:23:17]}
{[%emt 00:04:45]} 53. h6 {[%clk 00:47:23]} {[%emt 00:00:20]} Ng6 {[%clk
00:22:12]} {[%emt 00:01:33]} 54. h7 {[%clk 00:47:18]} {[%emt 00:00:35]} Nh8
{[%clk 00:20:55]} {[%emt 00:01:50]} 55. Kg3 {[%clk 00:44:54]} {[%emt 00:02:50]}
Rxb4 {[%clk 00:18:18]} {[%emt 00:03:08]} 56. Nc3 {[%clk 00:44:46]} {[%emt
00:00:37]} Rb3 {[%clk 00:17:06]} {[%emt 00:01:43]} 57. Ne2 {[%clk 00:44:55]}
{[%emt 00:00:20]} a5 {[%clk 00:17:07]} {[%emt 00:00:31]} 58. Kf3 {[%clk
00:44:58]} {[%emt 00:00:26]} a4 {[%clk 00:17:14]} {[%emt 00:00:24]} 59. Nd4
{[%clk 00:45:06]} {[%emt 00:00:24]} Rb2 {[%clk 00:14:02]} {[%emt 00:03:39]} 60.
Kxe3 {[%clk 00:45:06]} {[%emt 00:00:31]} a3 {[%clk 00:14:15]} {[%emt 00:00:17]}
61. Kd3 {[%clk 00:45:28]} {[%emt 00:00:08]} a2 {[%clk 00:13:30]} {[%emt
00:01:16]} 62. Nc2 {[%clk 00:45:49]} {[%emt 00:00:08]} Rb1 {[%clk 00:13:34]}
{[%emt 00:00:27]} 63. Rh2 {[%clk 00:46:03]} {[%emt 00:00:14]} Rb2 {[%clk
00:12:51]} {[%emt 00:01:13]} 64. Rh1 {[%clk 00:46:11]} {[%emt 00:00:22]} Rb1
{[%clk 00:13:04]} {[%emt 00:00:19]} 65. Rh2 {[%clk 00:46:30]} {[%emt 00:00:10]}
b4 {[%clk 00:13:06]} {[%emt 00:00:28]} 66. Rg2+ {[%clk 00:44:30]} {[%emt
00:02:29]} Kh6 {[%clk 00:13:25]} {[%emt 00:00:11]} 67. Rh2 {[%clk 00:44:53]}
{[%emt 00:00:07]} Kg7 {[%clk 00:13:45]} {[%emt 00:00:10]} 68. Rg2+ {[%clk
00:45:17]} {[%emt 00:00:06]} Kxh7 {[%clk 00:14:07]} {[%emt 00:00:08]} 69. Rh2
{[%clk 00:45:26]} {[%emt 00:00:21]} Kg7 {[%clk 00:14:17]} {[%emt 00:00:21]} 70.
Na1 {[%clk 00:44:54]} {[%emt 00:01:03]} Rxa1 {[%clk 00:13:37]} {[%emt
00:01:11]} 71. Rb2 {[%clk 00:45:15]} {[%emt 00:00:15]} Rd1+ {[%clk 00:13:53]}
{[%emt 00:00:07]} 72. Kd4 {[%clk 00:44:36]} {[%emt 00:00:12]} 0-1